[Event "FIDE World Rapid-ch Open 2018"]
[White "Khusnutdinov, Rustam"]
[Black "Ponkratov, Pavel"]
[Site "St. Petersburg"]
[Round "5.38"]
[Annotator "RC"]
[Result "1/2-1/2"]
[Date "2018.12.26"]
[WhiteElo "2470"]
[BlackElo "2630"]
[PlyCount "204"]
[TimeControl "900+10"]

1. e4 {[%emt 0:0:0]} e6 {[%emt 0:0:28]} 2. d4 {[%emt 0:0:0]} d5 {[%emt 0:0:0]} 3. Nd2 {[%emt 0:0:0]} g6 {[%emt 0:0:1]} 4. c3 {[%emt 0:0:18]} Bg7 {[%emt 0:0:8]} 5. e5 {[%emt 0:0:9]} c5 {[%emt 0:0:3]} 6. f4 {[%emt 0:0:0]} b6 {[%emt 0:0:51]} 7. Ndf3 {[%emt 0:0:5]} Ne7 {[%emt 0:0:6]} 8. Bb5+ {[%emt 0:0:15]} Nec6 {[%emt 0:0:24]} 9. Be3 {[%emt 0:0:25]} Ba6 {[%emt 0:0:0]} 10. Bxa6 {[%emt 0:1:56]} Nxa6 {[%emt 0:0:2]} 11. Ne2 {[%emt 0:0:1]} 0-0 {[%emt 0:1:0]} 12. 0-0 {[%emt 0:0:2]} f6 {[%emt 0:0:19]} 13. Qa4 {[%emt 0:0:26]
} Qc8 {[%emt 0:0:4]} 14. exf6 {[%emt 0:2:3]} Rxf6 {[%emt 0:0:0]} 15. Ne5 {[%emt 0:0:25]} Ne7 {[%emt 0:1:6]} 16. Ng3 {[%emt 0:0:52]} Qb7 {[%emt 0:1:3]} 17. Rae1 {[%emt 0:0:35]} b5 {[%emt 0:0:27]} 18. Qd1 {[%emt 0:0:30]
} c4 {[%emt 0:0:3]} 19. Bc1 {[%emt 0:0:17]} Nc7 {[%emt 0:0:0]} 20. b3 {[%emt 0:2:57]} Rd8 {[%emt 0:0:56]} 21. Ba3 {[%emt 0:0:13]} Bf8 {[%emt 0:2:58]} 22. Bxe7 {[%emt 0:1:35]} Bxe7 {[%emt 0:0:1]} 23. Ng4 {[%emt 0:0:1]
} Rff8 {[%emt 0:0:3]} 24. f5 {[%emt 0:0:1]} Qc6 {[%emt 0:0:0]} 25. f6 {[%emt 0:1:1]} Bd6 {[%emt 0:0:1]} 26. f7+ {[%emt 0:0:25]} Kh8 {[%emt 0:0:20]} 27. Qf3 {[%emt 0:0:2]} Be7 {[%emt 0:0:3]} 28. Ne5 {[%emt 0:0:1]
} Qb6 {[%emt 0:0:20]} 29. Qg4 {[%emt 0:0:11]} g5 {[%emt 0:0:0]} 30. Nh5 {[%emt 0:0:44]} b4 {[%emt 0:0:10]} 31. cxb4 {[%emt 0:0:46]} Nb5 {[%emt 0:0:9]} 32. Rd1 {[%emt 0:0:27]} Nc3 {[%emt 0:0:29]} 33. bxc4 {[%emt 0:1:57]
} dxc4 {[%emt 0:0:49]} 34. Rd2 {[%emt 0:0:3]} Rxd4 {[%emt 0:0:0]} 35. Rxd4 {[%emt 0:0:5]} Qxd4+ {[%emt 0:0:1]} 36. Qxd4 {[%emt 0:0:0]} Ne2+ {[%emt 0:0:1]} 37. Kh1 {[%emt 0:1:4]} Nxd4 {[%emt 0:0:2]} 38. Nxc4 {[%emt 0:0:21]} Bxb4 {[%emt 0:0:25]} 39. Ne5 {[%emt 0:0:19]} Rd8 {[%emt 0:0:59]
} 40. Rd1 {[%emt 0:0:31]} Nc6 {[%emt 0:0:11]} 41. Rxd8+ {[%emt 0:0:24]
} Nxd8 {[%emt 0:0:1]} 42. Nf6 {[%emt 0:0:7]} Kg7 {[%emt 0:0:0]} 43. Ne8+ {[%emt 0:0:15]} Kf8 {[%emt 0:0:15]} 44. Nf6 {[%emt 0:0:0]} h6 {[%emt 0:0:43]} 45. Ng8 {[%emt 0:0:12]} Kg7 {[%emt 0:0:8]} 46. g4 {[%emt 0:0:0]} Bf8 {[%emt 0:0:7]} 47. Nd7 {[%emt 0:0:6]} Nxf7 {[%emt 0:0:22]} 48. Ngf6 {[%emt 0:0:1]} Bd6 {[%emt 0:0:21]} 49. Ne4 {[%emt 0:0:16]} Bb4 {[%emt 0:0:30]
} 50. h3 {[%emt 0:0:10]} Nd8 {[%emt 0:0:5]} 51. Ne5 {[%emt 0:0:0]} Ba5 {[%emt 0:0:11]} 52. Kg2 {[%emt 0:0:7]} Bc7 {[%emt 0:0:1]} 53. Nf3 {[%emt 0:0:1]} Nc6 {[%emt 0:0:2]} 54. h4 {[%emt 0:0:1]} gxh4 {[%emt 0:0:3]
} 55. Nxh4 {[%emt 0:0:1]} Kf7 {[%emt 0:0:20]} 56. Nf3 {[%emt 0:0:41]
} Nb4 {[%emt 0:0:8]} 57. a4 {[%emt 0:0:11]} Nd5 {[%emt 0:0:0]} 58. Nd4 {[%emt 0:0:7]} Bb6 {[%emt 0:0:46]} 59. Nc6 {[%emt 0:0:12]} Ne7 {[%emt 0:0:3]} 60. Ne5+ {[%emt 0:0:2]} Kg7 {[%emt 0:0:2]} 61. Nc4 {[%emt 0:0:25]
} Nd5 {[%emt 0:0:5]} 62. Kf3 {[%emt 0:0:5]} Bc7 {[%emt 0:0:0]} 63. Ncd6 {[%emt 0:0:27]} Kg6 {[%emt 0:0:13]} 64. Nb5 {[%emt 0:0:2]} Bb6 {[%emt 0:0:30]} 65. a5 {[%emt 0:0:13]} Bg1 {[%emt 0:0:2]} 66. Ned6 {[%emt 0:0:8]
} a6 {[%emt 0:0:7]} 67. Na3 {[%emt 0:0:2]} Bc5 {[%emt 0:0:0]} 68. Nac4 {[%emt 0:0:3]} Nc3 {[%emt 0:0:16]} 69. Ne5+ {[%emt 0:0:21]} Kg7 {[%emt 0:0:7]} 70. Nb7 {[%emt 0:0:1]} Bd4 {[%emt 0:0:18]} 71. Nc6 {[%emt 0:0:3]
} Nb5 {[%emt 0:0:8]} 72. Ke4 {[%emt 0:0:14]} Bc3 {[%emt 0:0:0]} 73. Nc5 {[%emt 0:0:3]} Nc7 {[%emt 0:0:1]} 74. Kd3 {[%emt 0:0:8]} Be1 {[%emt 0:0:4]} 75. Ke2 {[%emt 0:0:1]} Bg3 {[%emt 0:0:11]} 76. Nb8 {[%emt 0:0:14]
} Bd6 {[%emt 0:0:1]} 77. Ne4 {[%emt 0:0:21]} Ba3 {[%emt 0:0:0]} 78. Nc6 {[%emt 0:0:12]} Kf7 {[%emt 0:0:3]} 79. Kd3 {[%emt 0:0:6]} Ke8 {[%emt 0:0:19]} 80. g5 {[%emt 0:0:13]} hxg5 {[%emt 0:0:4]} 81. Nxg5 {[%emt 0:0:1]
} Kd7 {[%emt 0:0:3]} 82. Nb8+ {[%emt 0:0:9]} Kd6 {[%emt 0:0:0]} 83. Kc4 {[%emt 0:0:6]} e5 {[%emt 0:0:30]} 84. Ne4+ {[%emt 0:0:27]} Ke6 {[%emt 0:0:7]} 85. Nc6 {[%emt 0:0:18]} Kf5 {[%emt 0:0:4]} 86. Kd3 {[%emt 0:0:13]
} Kf4 {[%emt 0:0:8]} 87. Nd2 {[%emt 0:0:11]} Bc5 {[%emt 0:0:0]} 88. Ne4 {[%emt 0:0:13]} Bf8 {[%emt 0:0:12]} 89. Nc3 {[%emt 0:0:1]} Bg7 {[%emt 0:0:24]} 90. Nb4 {[%emt 0:0:6]} Kf3 {[%emt 0:0:4]} 91. Nc6 {[%emt 0:0:7]
} Ne6 {[%emt 0:0:6]} 92. Nb4 {[%emt 0:0:18]} Nc7 {[%emt 0:0:0]} 93. Nc6 {[%emt 0:0:14]} Kf4 {[%emt 0:0:15]} 94. Nb4 {[%emt 0:0:7]} Kf5 {[%emt 0:0:2]} 95. Nc6 {[%emt 0:0:9]} Bf8 {[%emt 0:0:8]} 96. Ne4 {[%emt 0:0:20]
} Ne6 {[%emt 0:0:8]} 97. Ng3+ {[%emt 0:0:3]} Kg4 {[%emt 0:0:0]} 98. Ne4 {[%emt 0:0:18]} Kf4 {[%emt 0:0:3]} 99. Nf6 {[%emt 0:0:16]} Kf5 {[%emt 0:0:13]} 100. Nd5 {[%emt 0:0:12]} Nf4+ {[%emt 0:0:15]} 101. Kc4 {[%emt 0:0:5]
} Bd6 {[%emt 0:0:25]} 102. Ndb4 {[%emt 0:0:15]} Bc7 {[%emt 0:0:0]} 1/2-1/2

[Event "FIDE World Rapid-ch Open 2018"]
[White "Kevlishvili, Robby"]
[Black "Yudin, Sergei"]
[Site "St. Petersburg"]
[Round "5.39"]
[Annotator "ChessBase"]
[Result "0-1"]
[Date "2018.12.26"]
[WhiteElo "2451"]
[BlackElo "2507"]
[PlyCount "108"]
[TimeControl "900+10"]

1. e4 {[%emt 0:0:0]} d6 {[%emt 0:0:0]} 2. d4 {[%emt 0:0:0]} Nf6 {[%emt 0:0:0]} 3. Nc3 {[%emt 0:0:0]} e5 {[%emt 0:0:0]} 4. Nf3 {[%emt 0:0:0]} Nbd7 {[%emt 0:0:0]} 5. Bc4 {[%emt 0:0:3]} Be7 {[%emt 0:0:0]} 6. a4 {[%emt 0:0:3]
} 0-0 {[%emt 0:0:2]} 7. 0-0 {[%emt 0:0:3]} c6 {[%emt 0:0:2]
} 8. Re1 {[%emt 0:0:2]} h6 {[%emt 0:0:5]} 9. h3 {[%emt 0:0:13]} Re8 {[%emt 0:0:7]
} 10. b3 {[%emt 0:1:5]} exd4 {[%emt 0:0:39]} 11. Nxd4 {[%emt 0:0:3]
} Bf8 {[%emt 0:0:27]} 12. Bb2 {[%emt 0:0:18]} Nc5 {[%emt 0:0:0]} 13. Qf3 {[%emt 0:0:10]} Ne6 {[%emt 0:0:2]} 14. Bxe6 {[%emt 0:2:5]} Bxe6 {[%emt 0:0:9]} 15. Rad1 {[%emt 0:0:3]} Qa5 {[%emt 0:1:15]} 16. Nce2 {[%emt 0:0:47]
} d5 {[%emt 0:0:9]} 17. e5 {[%emt 0:3:2]} Ne4 {[%emt 0:0:10]
} 18. Ng3 {[%emt 0:0:26]} Nxg3 {[%emt 0:2:55]} 19. Qxg3 {[%emt 0:0:2]} c5 {[%emt 0:0:6]
} 20. Nb5 {[%emt 0:3:1]} d4 {[%emt 0:0:2]} 21. Bc1 {[%emt 0:0:0]} Bf5 {[%emt 0:0:46]} 22. Bd2 {[%emt 0:1:39]} Qb6 {[%emt 0:0:4]} 23. Rc1 {[%emt 0:0:8]} Re6 {[%emt 0:0:56]} 24. Bf4 {[%emt 0:0:19]} Rg6 {[%emt 0:0:24]
} 25. Qf3 {[%emt 0:0:1]} Bd7 {[%emt 0:0:12]} 26. Qd3 {[%emt 0:0:0]} Qc6 {[%emt 0:0:29]} 27. Bg3 {[%emt 0:1:4]} h5 {[%emt 0:0:6]} 28. h4 {[%emt 0:0:14]} Be7 {[%emt 0:0:3]} 29. Qe4 {[%emt 0:1:35]} Rg4 {[%emt 0:0:0]} 30. Qxc6 {[%emt 0:0:26]} Bxc6 {[%emt 0:0:1]} 31. Nd6 {[%emt 0:0:57]
} g6 {[%emt 0:1:12]} 32. c3 {[%emt 0:0:27]} Rd8 {[%emt 0:1:45]} 33. cxd4 {[%emt 0:0:8]
} cxd4 {[%emt 0:0:2]} 34. Red1 {[%emt 0:0:28]} f5 {[%emt 0:0:0]} 35. Nxb7 {[%emt 0:1:28]} Bxb7 {[%emt 0:0:2]} 36. Rc7 {[%emt 0:0:1]} Ba8 {[%emt 0:1:5]} 37. Rxe7 {[%emt 0:0:6]} f4 {[%emt 0:0:2]} 38. f3 {[%emt 0:0:17]
} Rxg3 {[%emt 0:0:11]} 39. Kf2 {[%emt 0:0:7]} g5 {[%emt 0:0:0]} 40. hxg5 {[%emt 0:0:12]} Rxg5 {[%emt 0:0:7]} 41. Rxa7 {[%emt 0:0:5]} Rxe5 {[%emt 0:0:6]} 42. Rc7 {[%emt 0:0:10]} d3 {[%emt 0:1:43]} 43. Rc4 {[%emt 0:0:9]
} Re2+ {[%emt 0:1:21]} 44. Kf1 {[%emt 0:0:14]} Rde8 {[%emt 0:0:0]} 45. Rd4 {[%emt 0:0:1]} Bb7 {[%emt 0:0:28]} 46. b4 {[%emt 0:0:1]} Ra2 {[%emt 0:0:10]} 47. b5 {[%emt 0:0:33]} Ree2 {[%emt 0:0:14]} 48. Rd8+ {[%emt 0:0:9]
} Kf7 {[%emt 0:0:2]} 49. R1xd3 {[%emt 0:0:1]} Rf2+ {[%emt 0:0:0]} 50. Ke1 {[%emt 0:0:1]} Rxg2 {[%emt 0:0:8]} 51. Kf1 {[%emt 0:0:32]} Rgf2+ {[%emt 0:0:13]} 52. Kg1 {[%emt 0:0:3]} Bxf3 {[%emt 0:0:13]} 53. b6 {[%emt 0:0:22]
} Rg2+ {[%emt 0:0:21]} 54. Kf1 {[%emt 0:0:2]} Rh2 {[%emt 0:0:0]} 0-1

[Event "FIDE World Rapid-ch Open 2018"]
[White "Christiansen, Johan-Sebastian"]
[Black "Mchedlishvili, Mikheil"]
[Site "St. Petersburg"]
[Round "5.40"]
[Annotator "RC"]
[Result "1/2-1/2"]
[Date "2018.12.26"]
[WhiteElo "2555"]
[BlackElo "2610"]
[PlyCount "77"]
[TimeControl "900+10"]

1. e4 {[%emt 0:0:0]} c6 {[%emt 0:0:0]} 2. d4 {[%emt 0:0:6]} d5 {[%emt 0:0:0]} 3. exd5 {[%emt 0:0:4]} cxd5 {[%emt 0:0:0]} 4. c4 {[%emt 0:1:39]} Nf6 {[%emt 0:0:4]} 5. Nc3 {[%emt 0:0:3]} e6 {[%emt 0:0:12]} 6. Nf3 {[%emt 0:0:4]
} Bb4 {[%emt 0:0:4]} 7. cxd5 {[%emt 0:0:19]} Nxd5 {[%emt 0:0:0]} 8. Bd2 {[%emt 0:0:2]} Nc6 {[%emt 0:0:39]} 9. Bd3 {[%emt 0:0:2]} 0-0 {[%emt 0:0:6]
} 10. 0-0 {[%emt 0:0:7]} Be7 {[%emt 0:0:17]} 11. Nxd5 {[%emt 0:1:2]
} Qxd5 {[%emt 0:0:39]} 12. Bc3 {[%emt 0:0:21]} Bf6 {[%emt 0:0:0]} 13. Qe2 {[%emt 0:0:48]} Bd7 {[%emt 0:2:11]} 14. Rfd1 {[%emt 0:1:8]} Qd6 {[%emt 0:6:43]} 15. Ne5 {[%emt 0:1:6]} Rad8 {[%emt 0:0:34]} 16. Be4 {[%emt 0:2:24]
} Be8 {[%emt 0:1:13]} 17. Ng4 {[%emt 0:3:12]} Be7 {[%emt 0:0:0]} 18. d5 {[%emt 0:0:43]} exd5 {[%emt 0:0:4]} 19. Bxd5 {[%emt 0:0:46]} Qg6 {[%emt 0:0:56]} 20. Ne5 {[%emt 0:4:5]} Nxe5 {[%emt 0:0:26]} 21. Bxe5 {[%emt 0:0:0]
} Rd7 {[%emt 0:1:17]} 22. Qf3 {[%emt 0:0:28]} Qb6 {[%emt 0:0:0]} 23. Bc3 {[%emt 0:0:2]} Bb4 {[%emt 0:0:17]} 24. Be4 {[%emt 0:0:10]} Bxc3 {[%emt 0:0:9]} 25. Qxc3 {[%emt 0:0:1]} Re7 {[%emt 0:0:15]} 26. Re1 {[%emt 0:0:1]
} g6 {[%emt 0:0:12]} 27. Bd5 {[%emt 0:0:10]} Rxe1+ {[%emt 0:0:0]} 28. Rxe1 {[%emt 0:0:1]} Bc6 {[%emt 0:0:1]} 29. Bxc6 {[%emt 0:0:7]} bxc6 {[%emt 0:0:3]} 30. h4 {[%emt 0:0:5]} h5 {[%emt 0:0:12]} 31. Re7 {[%emt 0:0:7]
} a5 {[%emt 0:0:13]} 32. g3 {[%emt 0:0:7]} a4 {[%emt 0:0:5]} 33. Re4 {[%emt 0:0:14]} Rb8 {[%emt 0:0:13]} 34. Rxa4 {[%emt 0:0:25]} Qxb2 {[%emt 0:0:9]
} 35. Qxc6 {[%emt 0:0:16]} Qa1+ {[%emt 0:0:26]} 36. Kh2 {[%emt 0:0:1]
} Kg7 {[%emt 0:0:7]} 37. Rf4 {[%emt 0:0:41]} Qxa2 {[%emt 0:0:0]} 38. Qc3+ {[%emt 0:0:5]} Kg8 {[%emt 0:0:3]} 39. Qc7 1/2-1/2

[Event "FIDE World Rapid-ch Open 2018"]
[White "Khismatullin, Denis"]
[Black "Chen, Qi b"]
[Site "St. Petersburg"]
[Round "5.41"]
[Annotator "RC"]
[Result "1-0"]
[Date "2018.12.26"]
[WhiteElo "2621"]
[BlackElo "2437"]
[PlyCount "95"]
[TimeControl "900+10"]

1. d4 {[%emt 0:0:0]} Nf6 {[%emt 0:0:0]} 2. Nf3 {[%emt 0:0:0]} d5 {[%emt 0:0:0]
} 3. c4 {[%emt 0:0:0]} e6 {[%emt 0:0:0]} 4. Nc3 {[%emt 0:0:0]} Nbd7 {[%emt 0:0:2]} 5. e3 {[%emt 0:1:17]} a6 {[%emt 0:0:17]} 6. b3 {[%emt 0:0:11]
} b6 {[%emt 0:1:26]} 7. Bb2 {[%emt 0:0:6]} Bb7 {[%emt 0:0:2]
} 8. Bd3 {[%emt 0:0:3]} Bd6 {[%emt 0:0:5]} 9. 0-0 {[%emt 0:0:28]} 0-0 {[%emt 0:0:2]
} 10. Qe2 {[%emt 0:0:6]} Qe7 {[%emt 0:1:1]} 11. Rac1 {[%emt 0:0:48]
} Ne4 {[%emt 0:0:48]} 12. Rc2 {[%emt 0:0:38]} Nxc3 {[%emt 0:0:0]} 13. Bxc3 {[%emt 0:1:41]} dxc4 {[%emt 0:0:3]} 14. bxc4 {[%emt 0:0:39]} h6 {[%emt 0:0:5]} 15. Rb1 {[%emt 0:4:51]} e5 {[%emt 0:3:21]} 16. c5 {[%emt 0:1:31]
} Bxf3 {[%emt 0:1:35]} 17. Qxf3 {[%emt 0:0:32]} bxc5 {[%emt 0:0:0]} 18. Qe4 {[%emt 0:0:23]} Nf6 {[%emt 0:0:51]} 19. Qf5 {[%emt 0:1:2]} g6 {[%emt 0:2:26]} 20. Qh3 {[%emt 0:0:7]} Kh7 {[%emt 0:0:19]} 21. dxe5 {[%emt 0:0:45]
} Bxe5 {[%emt 0:0:2]} 22. Bxe5 {[%emt 0:0:15]} Qxe5 {[%emt 0:0:0]} 23. Rbc1 {[%emt 0:0:3]} Rad8 {[%emt 0:0:44]} 24. Rxc5 {[%emt 0:0:0]} Qb2 {[%emt 0:0:35]} 25. R5c2 {[%emt 0:0:17]} Qa3 {[%emt 0:0:11]} 26. Bf1 {[%emt 0:0:13]} Rd7 {[%emt 0:0:33]} 27. Qf3 {[%emt 0:0:37]} Kg7 {[%emt 0:0:30]
} 28. g3 {[%emt 0:0:36]} Rfd8 {[%emt 0:0:29]} 29. Bc4 {[%emt 0:0:0]} a5 {[%emt 0:0:38]} 30. Kg2 {[%emt 0:0:21]} h5 {[%emt 0:0:22]} 31. Rc3 {[%emt 0:0:20]} Qb4 {[%emt 0:0:11]} 32. Bb3 {[%emt 0:0:6]} Ne8 {[%emt 0:0:38]
} 33. Rc5 {[%emt 0:0:36]} Re7 {[%emt 0:0:18]} 34. R1c4 {[%emt 0:0:31]
} Qd2 {[%emt 0:0:5]} 35. Rf4 {[%emt 0:0:11]} Nd6 {[%emt 0:0:0]} 36. Rd4 {[%emt 0:0:24]} Qe1 {[%emt 0:0:4]} 37. Rd1 {[%emt 0:0:17]} Qb4 {[%emt 0:0:1]} 38. Rcd5 {[%emt 0:0:7]} Rde8 {[%emt 0:0:15]} 39. R1d4 {[%emt 0:0:4]
} Qb6 {[%emt 0:0:2]} 40. Rf4 {[%emt 0:0:9]} Rf8 {[%emt 0:0:0]} 41. Rxh5 {[%emt 0:0:16]} gxh5 {[%emt 0:0:28]} 42. Qxh5 {[%emt 0:0:2]} Re4 {[%emt 0:0:15]} 43. Qg5+ {[%emt 0:0:16]} Kh8 {[%emt 0:0:3]} 44. Qh6+ {[%emt 0:0:1]
} Kg8 {[%emt 0:0:2]} 45. Qg5+ {[%emt 0:0:1]} Kh8 {[%emt 0:0:0]} 46. Rf6 {[%emt 0:0:16]} Re6 {[%emt 0:0:36]} 47. Bxe6 {[%emt 0:0:7]} Qc6+ {[%emt 0:0:1]} 48. Bd5 {[%emt 0:0:3]} 1-0

[Event "FIDE World Rapid-ch Open 2018"]
[White "Vokhidov, Shamsiddin"]
[Black "Ragger, Markus"]
[Site "St. Petersburg"]
[Round "5.42"]
[Annotator "RC"]
[Result "1/2-1/2"]
[Date "2018.12.26"]
[WhiteElo "2480"]
[BlackElo "2687"]
[PlyCount "71"]
[TimeControl "900+10"]

1. e4 {[%emt 0:0:0]} e5 {[%emt 0:0:0]} 2. Bc4 {[%emt 0:0:0]} Nf6 {[%emt 0:0:0]
} 3. d3 {[%emt 0:0:12]} Nc6 {[%emt 0:0:0]} 4. Nf3 {[%emt 0:0:0]} Bc5 {[%emt 0:0:0]} 5. 0-0 {[%emt 0:0:2]} d6 {[%emt 0:0:3]} 6. c3 {[%emt 0:0:3]
} a6 {[%emt 0:0:2]} 7. a4 {[%emt 0:0:5]} Ba7 {[%emt 0:0:7]} 8. b4 {[%emt 0:0:15]} h6 {[%emt 0:0:8]} 9. Re1 {[%emt 0:0:30]} 0-0 {[%emt 0:0:15]
} 10. Nbd2 {[%emt 0:0:3]} Ne7 {[%emt 0:0:5]} 11. Nf1 {[%emt 0:0:5]
} Ng6 {[%emt 0:0:7]} 12. Ng3 {[%emt 0:0:3]} c6 {[%emt 0:0:0]} 13. Bb3 {[%emt 0:0:5]} d5 {[%emt 0:0:15]} 14. h3 {[%emt 0:0:17]} Re8 {[%emt 0:0:12]
} 15. Qc2 {[%emt 0:0:53]} Be6 {[%emt 0:0:44]} 16. Be3 {[%emt 0:0:0]} Bxe3 {[%emt 0:0:27]} 17. Rxe3 {[%emt 0:0:2]} Qd6 {[%emt 0:0:56]} 18. d4 {[%emt 0:1:4]} dxe4 {[%emt 0:0:54]} 19. Nxe4 {[%emt 0:0:2]} Bxb3 {[%emt 0:1:52]
} 20. Qxb3 {[%emt 0:0:5]} Nxe4 {[%emt 0:0:5]} 21. Rxe4 {[%emt 0:0:1]
} Qd5 {[%emt 0:0:18]} 22. Qc2 {[%emt 0:1:46]} f5 {[%emt 0:0:0]} 23. Rxe5 {[%emt 0:0:50]} Nxe5 {[%emt 0:0:15]} 24. Nxe5 {[%emt 0:0:1]} a5 {[%emt 0:1:11]} 25. Rb1 {[%emt 0:0:4]} axb4 {[%emt 0:2:56]} 26. Rxb4 {[%emt 0:0:2]
} b5 {[%emt 0:0:12]} 27. axb5 {[%emt 0:0:39]} cxb5 {[%emt 0:0:0]} 28. Qxf5 {[%emt 0:0:55]} Rf8 {[%emt 0:0:38]} 29. Qb1 {[%emt 0:0:42]} Ra5 {[%emt 0:0:2]} 30. Rb2 {[%emt 0:0:56]} Rfa8 {[%emt 0:0:8]} 31. Kh2 {[%emt 0:0:13]
} Rc8 {[%emt 0:0:23]} 32. Qd3 {[%emt 0:0:38]} Qd6 {[%emt 0:0:0]} 33. Rb3 {[%emt 0:2:7]} Qd5 {[%emt 0:0:19]} 34. Rb2 {[%emt 0:0:26]} Qd6 {[%emt 0:0:1]} 35. Rb3 {[%emt 0:0:11]} Qd5 {[%emt 0:0:33]} 36. Rb2 {[%emt 0:1:34]
} 1/2-1/2

[Event "FIDE World Rapid-ch Open 2018"]
[White "Le, Quang Liem"]
[Black "Gasanov, Eldar"]
[Site "St. Petersburg"]
[Round "5.43"]
[Annotator "RC"]
[Result "1-0"]
[Date "2018.12.26"]
[WhiteElo "2714"]
[BlackElo "2499"]
[PlyCount "91"]
[TimeControl "900+10"]

1. e4 {[%emt 0:0:0]} c5 {[%emt 0:0:0]} 2. Nf3 {[%emt 0:0:0]} Nc6 {[%emt 0:0:3]
} 3. d4 {[%emt 0:0:0]} cxd4 {[%emt 0:0:5]} 4. Nxd4 {[%emt 0:0:0]} g6 {[%emt 0:0:52]} 5. c4 {[%emt 0:0:7]} d6 {[%emt 0:0:11]} 6. Be3 {[%emt 0:0:27]
} Bg7 {[%emt 0:0:9]} 7. Nc3 {[%emt 0:0:11]} Qb6 {[%emt 0:0:0]} 8. Ndb5 {[%emt 0:1:38]} Bxc3+ {[%emt 0:0:20]} 9. Nxc3 {[%emt 0:0:46]} Qxb2 {[%emt 0:0:5]} 10. Nd5 {[%emt 0:0:7]} Kf8 {[%emt 0:0:42]} 11. Be2 {[%emt 0:1:37]
} Kg7 {[%emt 0:1:7]} 12. Rb1 {[%emt 0:2:3]} Qe5 {[%emt 0:0:0]} 13. f3 {[%emt 0:0:24]} Rb8 {[%emt 0:3:10]} 14. 0-0 {[%emt 0:0:24]} Nf6 {[%emt 0:0:27]} 15. Qd2 {[%emt 0:0:48]} Rd8 {[%emt 0:2:43]} 16. Rb5 {[%emt 0:1:13]
} Qe6 {[%emt 0:0:44]} 17. g4 {[%emt 0:2:49]} b6 {[%emt 0:1:1]
} 18. Qc3 {[%emt 0:0:50]} Kg8 {[%emt 0:0:54]} 19. Bg5 {[%emt 0:1:28]} Ne8 {[%emt 0:0:39]
} 20. Rb2 {[%emt 0:0:49]} f6 {[%emt 0:0:13]} 21. Bh4 {[%emt 0:0:0]} Qe5 {[%emt 0:0:22]} 22. Qa3 {[%emt 0:0:31]} Bd7 {[%emt 0:1:47]} 23. Bg3 {[%emt 0:0:30]} Qe6 {[%emt 0:0:9]} 24. c5 {[%emt 0:0:16]} Qf7 {[%emt 0:0:0]} 25. cxd6 {[%emt 0:0:4]} exd6 {[%emt 0:0:8]} 26. Rc1 {[%emt 0:0:30]
} Kg7 {[%emt 0:0:23]} 27. g5 {[%emt 0:0:41]} fxg5 {[%emt 0:0:10]} 28. Rxc6 {[%emt 0:0:4]
} Bxc6 {[%emt 0:0:5]} 29. Qc3+ {[%emt 0:0:2]} Kh6 {[%emt 0:0:0]} 30. Qxc6 {[%emt 0:0:2]} Rbc8 {[%emt 0:0:3]} 31. Qa4 {[%emt 0:0:12]
} Rc1+ {[%emt 0:0:5]} 32. Kg2 {[%emt 0:0:2]} Rdc8 {[%emt 0:0:15]} 33. h4 {[%emt 0:0:19]
} gxh4 {[%emt 0:0:44]} 34. Bf4+ {[%emt 0:0:3]} g5 {[%emt 0:0:0]} 35. Bxc1 {[%emt 0:0:1]} Rxc1 {[%emt 0:0:3]} 36. Rc2 {[%emt 0:0:32]} Rxc2 {[%emt 0:0:10]} 37. Qxc2 {[%emt 0:0:2]} Nf6 {[%emt 0:0:20]} 38. Ne3 {[%emt 0:0:9]
} Nh5 {[%emt 0:0:14]} 39. Nf5+ {[%emt 0:0:8]} Kg6 {[%emt 0:0:0]} 40. Bc4 {[%emt 0:0:40]} Nf4+ {[%emt 0:0:17]} 41. Kh2 {[%emt 0:0:6]} d5 {[%emt 0:0:1]} 42. Bb3 {[%emt 0:0:5]} Qf6 {[%emt 0:0:20]} 43. Qc8 {[%emt 0:0:30]
} Qb2+ {[%emt 0:0:17]} 44. Bc2 {[%emt 0:0:1]} dxe4 {[%emt 0:0:0]} 45. fxe4 {[%emt 0:0:18]} Nh5 {[%emt 0:0:10]} 46. Qe8+ {[%emt 0:0:24]
} 1-0

[Event "FIDE World Rapid-ch Open 2018"]
[White "Tomashevsky, Evgeny"]
[Black "Sychev, Klementy"]
[Site "St. Petersburg"]
[Round "5.44"]
[Annotator "RC"]
[Result "1-0"]
[Date "2018.12.26"]
[WhiteElo "2705"]
[BlackElo "2537"]
[PlyCount "81"]
[TimeControl "900+10"]

1. c4 {[%emt 0:0:0]} g6 {[%emt 0:0:0]} 2. e4 {[%emt 0:0:0]} e5 {[%emt 0:0:0]} 3. Nc3 {[%emt 0:0:0]} Bg7 {[%emt 0:0:6]} 4. d3 {[%emt 0:0:4]} Nc6 {[%emt 0:0:10]} 5. g3 {[%emt 0:0:4]} d6 {[%emt 0:0:9]} 6. Bg2 {[%emt 0:0:0]} f5 {[%emt 0:0:57]} 7. Nge2 {[%emt 0:0:9]} Nf6 {[%emt 0:0:3]} 8. 0-0 {[%emt 0:0:12]
} 0-0 {[%emt 0:0:7]} 9. Nd5 {[%emt 0:0:8]} Be6 {[%emt 0:0:0]} 10. h3 {[%emt 0:1:10]} Qd7 {[%emt 0:0:10]} 11. Kh2 {[%emt 0:0:6]} Rae8 {[%emt 0:0:41]} 12. Be3 {[%emt 0:0:6]} Nh5 {[%emt 0:3:43]} 13. exf5 {[%emt 0:0:51]
} gxf5 {[%emt 0:0:10]} 14. f4 {[%emt 0:0:5]} Nf6 {[%emt 0:0:0]} 15. Qd2 {[%emt 0:0:37]} Rf7 {[%emt 0:3:15]} 16. Rae1 {[%emt 0:0:33]} Kh8 {[%emt 0:0:8]} 17. Nxf6 {[%emt 0:4:15]} Bxf6 {[%emt 0:0:4]} 18. b3 {[%emt 0:0:1]
} Rfe7 {[%emt 0:2:8]} 19. d4 {[%emt 0:0:20]} exd4 {[%emt 0:0:0]} 20. Nxd4 {[%emt 0:0:3]} Nd8 {[%emt 0:0:13]} 21. Bf2 {[%emt 0:1:7]} Bf7 {[%emt 0:0:13]} 22. Rxe7 {[%emt 0:2:31]} Rxe7 {[%emt 0:0:2]} 23. Re1 {[%emt 0:1:26]
} Rxe1 {[%emt 0:0:13]} 24. Qxe1 {[%emt 0:0:1]} c5 {[%emt 0:0:0]} 25. Ne2 {[%emt 0:2:33]} Nc6 {[%emt 0:0:6]} 26. Nc3 {[%emt 0:0:7]} Bg7 {[%emt 0:0:36]} 27. Qd2 {[%emt 0:0:34]} Nd4 {[%emt 0:0:3]} 28. Bxd4 {[%emt 0:0:45]
} cxd4 {[%emt 0:0:12]} 29. Ne2 {[%emt 0:0:1]} d5 {[%emt 0:0:0]} 30. c5 {[%emt 0:0:2]} Qc6 {[%emt 0:0:22]} 31. b4 {[%emt 0:0:55]} Qf6 {[%emt 0:0:5]
} 32. a4 {[%emt 0:0:3]} b6 {[%emt 0:0:16]} 33. cxb6 {[%emt 0:0:0]} axb6 {[%emt 0:0:15]} 34. a5 {[%emt 0:0:44]} bxa5 {[%emt 0:0:2]} 35. bxa5 {[%emt 0:0:1]} h6 {[%emt 0:0:10]} 36. Qd3 {[%emt 0:0:12]} Kg8 {[%emt 0:0:12]
} 37. Qb5 {[%emt 0:0:21]} Qe7 {[%emt 0:0:22]} 38. a6 {[%emt 0:0:0]} Kh7 {[%emt 0:0:14]} 39. Qb7 {[%emt 0:0:27]} Qxe2 {[%emt 0:0:1]} 40. a7 {[%emt 0:0:1]} Be6 {[%emt 0:0:20]} 41. a8=Q {[%emt 0:0:8]} 1-0

[Event "FIDE World Rapid-ch Open 2018"]
[White "Riazantsev, Alexander"]
[Black "Popov, Ivan"]
[Site "St. Petersburg"]
[Round "5.45"]
[Annotator "RC"]
[Result "1/2-1/2"]
[Date "2018.12.26"]
[WhiteElo "2649"]
[BlackElo "2592"]
[PlyCount "69"]
[TimeControl "900+10"]

1. d4 {[%emt 0:0:0]} d5 {[%emt 0:0:0]} 2. c4 {[%emt 0:0:0]} dxc4 {[%emt 0:0:0]
} 3. e3 {[%emt 0:0:0]} Nf6 {[%emt 0:0:10]} 4. Bxc4 {[%emt 0:0:0]} c5 {[%emt 0:0:5]} 5. Nf3 {[%emt 0:0:0]} e6 {[%emt 0:0:4]} 6. 0-0 {[%emt 0:0:0]} Nc6 {[%emt 0:0:2]} 7. Bd3 {[%emt 0:0:35]} Be7 {[%emt 0:0:0]} 8. dxc5 {[%emt 0:0:42]} Nd7 {[%emt 0:1:7]} 9. Nd4 {[%emt 0:3:51]} Nxc5 {[%emt 0:0:10]} 10. Bb5 {[%emt 0:0:14]} Bd7 {[%emt 0:0:27]} 11. Nxc6 {[%emt 0:0:8]
} Bxc6 {[%emt 0:0:22]} 12. Bxc6+ {[%emt 0:0:1]} bxc6 {[%emt 0:0:0]} 13. Nc3 {[%emt 0:1:1]} 0-0 {[%emt 0:0:45]} 14. Qe2 {[%emt 0:2:19]} Qd3 {[%emt 0:0:36]} 15. Rd1 {[%emt 0:0:37]} Qxe2 {[%emt 0:0:4]} 16. Nxe2 {[%emt 0:0:1]
} Bf6 {[%emt 0:2:6]} 17. Rb1 {[%emt 0:0:2]} Rfd8 {[%emt 0:0:0]} 18. Bd2 {[%emt 0:0:44]} Na4 {[%emt 0:0:36]} 19. Bc3 {[%emt 0:2:9]} Nxb2 {[%emt 0:0:28]} 20. Rxd8+ {[%emt 0:1:30]} Rxd8 {[%emt 0:0:2]} 21. Bd4 {[%emt 0:0:0]} Bxd4 {[%emt 0:4:38]} 22. Nxd4 {[%emt 0:0:5]} c5 {[%emt 0:0:0]} 23. Rxb2 {[%emt 0:0:34]} cxd4 {[%emt 0:0:2]} 24. exd4 {[%emt 0:0:0]} g5 {[%emt 0:1:59]} 25. Rb4 {[%emt 0:0:27]} e5 {[%emt 0:0:24]} 26. Kf1 {[%emt 0:0:5]
} exd4 {[%emt 0:0:3]} 27. Ke2 {[%emt 0:0:9]} Rc8 {[%emt 0:0:0]} 28. Kd2 {[%emt 0:0:34]} Rc3 {[%emt 0:0:49]} 29. Ra4 {[%emt 0:0:20]} Kg7 {[%emt 0:0:12]} 30. Rxa7 {[%emt 0:0:11]} h5 {[%emt 0:0:18]} 31. Ra6 {[%emt 0:2:18]
} f6 {[%emt 0:0:4]} 32. h3 {[%emt 0:0:47]} Kg6 {[%emt 0:0:9]
} 33. Ra5 {[%emt 0:0:1]} g4 {[%emt 0:0:37]} 34. hxg4 {[%emt 0:0:3]} hxg4 {[%emt 0:0:1]
} 35. Rd5 {[%emt 0:0:38]} 1/2-1/2